fUSD/lending_fUSD_20250804
["ID","MTS","AMOUNT","RATE_DAILY","PERIOD"]
[377240929,1754306008029,-699.87,0.00040821,2]
[377240930,1754306008039,-1343.86,0.00040821,2]
[377240931,1754306008048,-743.43,0.00040821,2]
[377240932,1754306008059,-418.89,0.00040821,2]
[377240933,1754306008068,-616.73,0.00040821,2]
[377240934,1754306008078,-400.0,0.00040821,2]
[377240935,1754306008087,-262.88347909,0.00040821,2]
[377240936,1754306008098,-927.18,0.00040821,2]
[377240937,1754306008107,-875.84,0.00040821,2]
[377240938,1754306008117,-240.0,0.00040821,2]
[377240939,1754306008127,-1329.19,0.00040821,2]
[377240940,1754306008137,-434.19,0.00040821,2]
[377240941,1754306008147,-1658.94,0.00040821,2]
[377240942,1754306008157,-1333.24,0.00040821,2]
[377240943,1754306008166,-1252.38,0.00040821,2]
[377240944,1754306008175,-400.0,0.00040821,2]
[377240945,1754306008185,-967.63,0.00040821,2]
[377240946,1754306008195,-1263.4,0.00040821,2]
[377240947,1754306008205,-400.0,0.00040821,2]
[377240948,1754306008214,-414.76,0.00040821,2]
[377240949,1754306008224,-400.0,0.00040821,2]
[377240950,1754306008233,-944.68,0.00040821,2]
[377240951,1754306008242,-400.0,0.00040821,2]
[377240952,1754306008252,-412.29,0.00040821,2]
[377240953,1754306008261,-605.41,0.00040821,2]
[377240954,1754306008271,-1748.2,0.00040821,2]
[377240955,1754306008280,-1117.53,0.00040821,2]
[377240956,1754306008289,-886.22,0.00040821,2]
[377240957,1754306008298,-2048.38,0.00040821,2]
[377240958,1754306008309,-3038.05,0.00040821,2]
[377240959,1754306008319,-400.0,0.00040821,2]
[377240960,1754306008327,-611.63,0.00040821,2]
[377240961,1754306008336,-345.44506525,0.00040821,2]
[377240962,1754306008345,-1068.97,0.00040821,2]
[377240963,1754306008354,-673.68,0.00040821,2]
[377240964,1754306008363,-841.94,0.00040821,2]
[377240965,1754306008372,-590.51,0.00040821,2]
[377240966,1754306008382,-1348.61,0.00040821,2]
[377240967,1754306008391,-4263.58,0.00040821,2]
[377240968,1754306008400,-406.98,0.00040821,2]
[377240969,1754306008410,-400.0,0.00040821,2]
[377240970,1754306008419,-1374.4,0.00040821,2]
[377240971,1754306008428,-661.31,0.00040821,2]
[377240972,1754306008437,-1778.85,0.00040821,2]
[377240973,1754306008446,-888.64,0.00040821,2]
[377240974,1754306008456,-1281.23,0.00040821,2]
[377240975,1754306008465,-541.82309279,0.00040821,2]
[377240976,1754306008475,-1558.5,0.00040821,2]
[377240977,1754306008485,-838.38,0.00040821,2]
[377240978,1754306008494,-1793.86,0.00040821,2]
[377240979,1754306008503,-632.03,0.00040821,2]
[377240980,1754306008514,-719.42,0.00040821,2]
[377240981,1754306008523,-2346.34,0.00040821,2]
[377240982,1754306008532,-2208.08,0.00040821,2]
[377240983,1754306008542,-400.0,0.00040821,2]
[377240984,1754306008552,-6220.24,0.00040821,2]
[377240985,1754306008562,-2121.06,0.00040821,2]
[377240986,1754306008571,-2028.4,0.00040821,2]
[377240987,1754306008580,-959.16,0.00040821,2]
[377240988,1754306008590,-1009.99,0.00040821,2]
[377240989,1754306008600,-400.0,0.00040821,2]
[377240990,1754306008609,-1169.71,0.00040821,2]
[377240991,1754306008618,-693.34,0.00040821,2]
[377240992,1754306008627,-1366.07,0.00040821,2]
[377240993,1754306008636,-1421.12,0.00040821,2]
[377240994,1754306008645,-1689.54,0.00040821,2]
[377240995,1754306008655,-1110.66,0.00040821,2]
[377240996,1754306008665,-487.34,0.00040821,2]
[377240997,1754306008674,-401.93,0.00040821,2]
[377240998,1754306008684,-2122.58,0.00040821,2]
[377240999,1754306008693,-548.21,0.00040821,2]
[377241000,1754306008702,-2428.92,0.00040821,2]
[377241001,1754306008710,-1096.89,0.00040821,2]
[377241002,1754306008719,-400.0,0.00040821,2]
[377241003,1754306008729,-400.0,0.00040821,2]
[377241004,1754306008738,-400.0,0.00040821,2]
[377241005,1754306008747,-558.13,0.00040821,2]
[377241006,1754306008756,-1162.47,0.00040821,2]
[377241007,1754306008765,-683.16,0.00040821,2]
[377241008,1754306008774,-4527.79,0.00040821,2]
[377241009,1754306008784,-400.0,0.00040821,2]
[377241010,1754306008793,-688.63,0.00040821,2]
[377241011,1754306008803,-400.0,0.00040821,2]
[377241012,1754306008813,-787.49,0.00040821,2]
[377241013,1754306008822,-400.0,0.00040821,2]
[377241014,1754306008832,-5396.72,0.00040821,2]
[377241015,1754306008841,-1940.04,0.00040821,2]
[377241016,1754306008851,-642.79,0.00040821,2]
[377241017,1754306008860,-400.0,0.00040821,2]
[377241018,1754306008870,-400.0,0.00040821,2]
[377241019,1754306008879,-4563.07,0.00040821,2]
[377241020,1754306008889,-1973.82,0.00040821,2]
[377241021,1754306008898,-1666.37,0.00040821,2]
[377241022,1754306008908,-400.0,0.00040821,2]
[377241023,1754306008917,-400.0,0.00040821,2]
[377241024,1754306008927,-524.97,0.00040821,2]
[377241025,1754306008942,-962.89,0.00040821,2]
[377241026,1754306008951,-778.62,0.00040821,2]
[377241027,1754306008960,-1536.5,0.00040821,2]
[377241028,1754306008970,-1125.71,0.00040821,2]
[377241029,1754306008981,-8227.11,0.00040821,2]
[377241030,1754306008990,-802.26,0.00040821,2]
[377241031,1754306009000,-400.0,0.00040821,2]
[377241032,1754306009010,-2940.43,0.00040821,2]
[377241033,1754306009020,-770.91,0.00040821,2]
[377241034,1754306009030,-11138.27,0.00040821,2]
[377241035,1754306009040,-458.47,0.00040821,2]
[377241036,1754306009050,-2047.73,0.00040821,2]
[377241037,1754306009059,-1728.23,0.00040821,2]
[377241038,1754306009068,-2159.66,0.00040821,2]
[377241039,1754306009078,-1756.78,0.00040821,2]
[377241040,1754306009087,-445.29,0.00040821,2]
[377241041,1754306009096,-2736.99,0.00040821,2]
[377241042,1754306009106,-1618.06,0.00040821,2]
[377241043,1754306009115,-581.83,0.00040821,2]
[377241044,1754306009124,-893.35,0.00040821,2]
[377241045,1754306009134,-1865.31,0.00040821,2]
[377241046,1754306009143,-9079.6,0.00040821,2]
[377241047,1754306009153,-400.0,0.00040821,2]
[377241048,1754306009162,-1394.73,0.00040821,2]
[377241049,1754306009172,-1087.63,0.00040821,2]
[377241050,1754306009181,-3648.6,0.00040821,2]
[377241051,1754306009190,-997.42,0.00040821,2]
[377241052,1754306009200,-1873.61,0.00040821,2]
[377241053,1754306009210,-510.65,0.00040821,2]
[377241054,1754306009219,-1200.71,0.00040821,2]
[377241055,1754306009229,-400.0,0.00040821,2]
[377241056,1754306009238,-520.48,0.00040821,2]
[377241057,1754306009248,-1629.46,0.00040821,2]
[377241058,1754306009258,-531.96,0.00040821,2]
[377241059,1754306009267,-875.07,0.00040821,2]
[377241060,1754306009276,-3451.49,0.00040821,2]
[377241061,1754306009286,-688.87,0.00040821,2]
[377241062,1754306009295,-1001.01,0.00040821,2]
[377241063,1754306009306,-6021.56,0.00040821,2]
[377241064,1754306009315,-400.0,0.00040821,2]
[377241065,1754306009325,-400.0,0.00040821,2]
[377241066,1754306009334,-659.18,0.00040821,2]
[377241067,1754306009343,-1875.95,0.00040821,2]
[377241068,1754306009353,-618.84,0.00040821,2]
[377241069,1754306009362,-491.69,0.00040821,2]
[377241070,1754306009372,-905.16,0.00040821,2]
[377241071,1754306009381,-476.99,0.00040821,2]
[377241072,1754306009390,-1286.32,0.00040821,2]
[377241073,1754306009399,-713.76,0.00040821,2]
[377241074,1754306009409,-580.3,0.00040821,2]
[377241075,1754306009418,-1377.16,0.00040821,2]
[377241076,1754306009428,-1539.83,0.00040821,2]
[377241077,1754306009437,-727.44,0.00040821,2]
[377241078,1754306009447,-582.52,0.00040821,2]
[377241079,1754306009456,-2160.03,0.00040821,2]
[377241080,1754306009466,-400.0,0.00040821,2]
[377241081,1754306009475,-406.58,0.00040821,2]
[377241082,1754306009485,-1891.71,0.00040821,2]
[377241083,1754306009495,-1515.13,0.00040821,2]
[377241084,1754306009504,-1032.57,0.00040821,2]
[377241085,1754306009514,-3107.23,0.00040821,2]
[377241086,1754306009524,-1732.93,0.00040821,2]
[377241087,1754306009534,-6316.72,0.00040821,2]
[377241088,1754306009675,-1698.39,0.00040821,2]
[377241089,1754306009686,-400.0,0.00040821,2]
[377241090,1754306009695,-1238.95,0.00040821,2]
[377241091,1754306009705,-1670.39,0.00040821,2]
[377241092,1754306009714,-1066.08,0.00040821,2]
[377241093,1754306009724,-2052.93,0.00040821,2]
[377241094,1754306009734,-1868.67,0.00040821,2]
[377241095,1754306009743,-533.88,0.00040821,2]
[377241096,1754306009753,-400.0,0.00040821,2]
[377241097,1754306009762,-1689.09,0.00040821,2]
[377241098,1754306009771,-1178.78,0.00040821,2]
[377241099,1754306009781,-942.3,0.00040821,2]
[377241100,1754306009791,-1644.64,0.00040821,2]
[377241101,1754306009801,-400.0,0.00040821,2]
[377241102,1754306009811,-1545.77,0.00040821,2]
[377241103,1754306009820,-1572.92,0.00040821,2]
[377241104,1754306009831,-1113.34,0.00040821,2]
[377241105,1754306009840,-1722.33,0.00040821,2]
[377241106,1754306009850,-1766.11,0.00040821,2]
[377241107,1754306009859,-8388.36,0.00040821,2]
[377241108,1754306009869,-1306.14,0.00040821,2]
[377241109,1754306009879,-819.3,0.00040821,2]
[377241110,1754306009888,-1596.57,0.00040821,2]
[377241111,1754306009898,-400.0,0.00040821,2]
[377241112,1754306009908,-1501.24,0.00040821,2]
[377241113,1754306009917,-1264.88,0.00040821,2]
[377241114,1754306009927,-431.73,0.00040821,2]
[377241115,1754306009941,-316.43932317,0.00040821,2]
[377241116,1754306009950,-1010.21,0.00040821,2]
[377241117,1754306009959,-1156.04,0.00040821,2]
[377241118,1754306009970,-873.38,0.00040821,2]
[377241119,1754306009979,-4195.1,0.00040821,2]
[377241120,1754306009989,-1925.04,0.00040821,2]
[377241121,1754306009998,-400.0,0.00040821,2]
[377241122,1754306010007,-714.27,0.00040821,2]
[377241123,1754306010017,-1469.78,0.00040821,2]
[377241124,1754306010027,-817.57,0.00040821,2]
[377241125,1754306010036,-1923.74,0.00040821,2]
[377241126,1754306010045,-1747.36,0.00040821,2]
[377241127,1754306010056,-694.89,0.00040821,2]
[377241128,1754306010065,-400.0,0.00040821,2]
[377241129,1754306010075,-670.37,0.00040821,2]
[377241130,1754306010084,-1337.16,0.00040821,2]
[377241131,1754306010094,-1746.78,0.00040821,2]
[377241132,1754306010104,-1448.9,0.00040821,2]
[377241133,1754306010114,-5776.09,0.00040821,2]
[377241134,1754306010124,-1374.38,0.00040821,2]
[377241135,1754306010134,-400.0,0.00040821,2]
[377241136,1754306010144,-1793.17,0.00040821,2]
[377241137,1754306010159,-1183.71,0.00040821,2]
[377241138,1754306010168,-400.0,0.00040821,2]
[377241139,1754306010179,-400.0,0.00040821,2]
[377241140,1754306010189,-6346.76,0.00040821,2]
[377241141,1754306010198,-540.10510013,0.00040821,2]
[377241142,1754306010208,-455.16,0.00040821,2]
[377241143,1754306010218,-400.0,0.00040821,2]
[377241144,1754306010228,-400.0,0.00040821,2]
[377241145,1754306010238,-1230.85,0.00040821,2]
[377241146,1754306010248,-1208.54,0.00040821,2]
[377241147,1754306010258,-400.0,0.00040821,2]
[377241148,1754306010267,-1363.88,0.00040821,2]
[377241149,1754306010277,-400.0,0.00040821,2]
[377241150,1754306010287,-941.56,0.00040821,2]
[377241151,1754306010296,-1603.12,0.00040821,2]
[377241152,1754306010306,-2444.62,0.00040821,2]
[377241153,1754306010316,-968.13,0.00040821,2]
[377241154,1754306010326,-642.68,0.00040821,2]
[377241155,1754306010335,-521.68,0.00040821,2]
[377241156,1754306010345,-400.0,0.00040821,2]
[377241157,1754306010355,-1266.17,0.00040821,2]
[377241158,1754306010365,-532.52,0.00040821,2]
[377241159,1754306010375,-403.29,0.00040821,2]
[377241160,1754306010385,-2358.63,0.00040821,2]
[377241161,1754306010394,-1754.23,0.00040821,2]
[377241162,1754306010403,-2154.85,0.00040821,2]
[377241163,1754306010413,-400.0,0.00040821,2]
[377241164,1754306010422,-403.11,0.00040821,2]
[377241165,1754306010432,-759.33,0.00040821,2]
[377241166,1754306010442,-1735.99,0.00040821,2]
[377241167,1754306010452,-1873.9,0.00040821,2]
[377241168,1754306010462,-400.0,0.00040821,2]
[377241169,1754306010472,-1686.63,0.00040821,2]
[377241170,1754306010483,-1673.67,0.00040821,2]
[377241171,1754306010492,-1754.05,0.00040821,2]
[377241172,1754306010502,-914.89,0.00040821,2]
[377241173,1754306010512,-1464.44,0.00040821,2]
[377241174,1754306010521,-1593.33,0.00040821,2]
[377241175,1754306010531,-773.62,0.00040821,2]
[377241176,1754306010542,-1378.84,0.00040821,2]
[377241177,1754306010552,-783.24,0.00040821,2]
[377241178,1754306010562,-652.46,0.00040821,2]
[377241179,1754306010572,-2045.74,0.00040821,2]
[377241180,1754306010582,-4332.09,0.00040821,2]
[377241181,1754306010592,-557.78,0.00040821,2]
[377241182,1754306010602,-400.0,0.00040821,2]
[377241183,1754306010612,-505.58,0.00040821,2]
[377241184,1754306010622,-781.05,0.00040821,2]
[377241185,1754306010632,-1582.56,0.00040821,2]
[377241186,1754306010641,-437.18,0.00040821,2]
[377241187,1754306010652,-2822.69,0.00040821,2]
[377241188,1754306010663,-4257.32,0.00040821,2]
[377241189,1754306010672,-400.0,0.00040821,2]
[377241190,1754306010682,-194.8509453,0.00040821,2]
[377241191,1754306010692,-958.47,0.00040821,2]
[377241192,1754306010703,-8555.46,0.00040821,2]
[377241193,1754306010712,-301.42292839,0.00040821,2]
[377241194,1754306010723,-167.15272489,0.00040821,2]
[377241195,1754306010733,-1692.49,0.00040821,2]
[377241196,1754306010742,-1474.41,0.00040821,2]
[377241197,1754306010753,-8447.34,0.00040821,2]
[377241198,1754306010763,-12684.74,0.00040821,2]
[377241199,1754306010774,-1233.77,0.00040821,2]
[377241200,1754306010784,-920.62,0.00040821,2]
[377241201,1754306010794,-1370.77,0.00040821,2]
[377241202,1754306010805,-400.0,0.00040821,2]
[377241203,1754306010815,-400.0,0.00040821,2]
[377241204,1754306010829,-1888.39,0.00040821,2]
[377241205,1754306010839,-1907.39,0.00040821,2]
[377241206,1754306010849,-1431.25,0.00040821,2]
[377241207,1754306010859,-2271.19,0.00040821,2]
[377241208,1754306010870,-471.36389345,0.00040821,2]
[377241209,1754306010879,-1147.83,0.00040821,2]
[377241210,1754306010889,-1817.19,0.00040821,2]
[377241211,1754306010900,-400.0,0.00040821,2]
[377241212,1754306010910,-400.0,0.00040821,2]
[377241213,1754306010920,-501.42118597,0.00040821,2]
[377241214,1754306010931,-2068.75,0.00040821,2]
[377241215,1754306010942,-2687.79,0.00040821,2]
[377241216,1754306010952,-400.0,0.00040821,2]
[377241217,1754306010961,-2214.61,0.00040821,2]
[377241218,1754306010971,-400.0,0.00040821,2]
[377241219,1754306010981,-802.2,0.00040821,2]
[377241220,1754306010991,-670.02,0.00040821,2]
[377241221,1754306011001,-78789.54,0.00040821,2]
[377241222,1754306011012,-1614.22,0.00040821,2]
[377241223,1754306011022,-400.0,0.00040821,2]
[377241224,1754306011031,-579.73,0.00040821,2]
[377241225,1754306011041,-1475.5,0.00040821,2]
[377241226,1754306011051,-1690.87,0.00040821,2]
[377241227,1754306011060,-400.0,0.00040821,2]
[377241228,1754306011070,-2169.93,0.00040821,2]
[377241229,1754306011080,-1594.85,0.00040821,2]
[377241230,1754306011090,-518.83952443,0.00040821,2]
[377241231,1754306011100,-11200.4,0.00040821,2]
[377241232,1754306011110,-1258.18,0.00040821,2]
[377241233,1754306011119,-1475.71,0.00040821,2]
[377241234,1754306011129,-1043.71,0.00040821,2]
[377241235,1754306011139,-1778.93,0.00040821,2]
[377241236,1754306011148,-498.32,0.00040821,2]
[377241237,1754306011158,-898.73,0.00040821,2]
[377241238,1754306011167,-3118.04,0.00040821,2]
[377241239,1754306011177,-1556.28,0.00040821,2]
[377241240,1754306011186,-1857.39,0.00040821,2]
[377241241,1754306011196,-400.0,0.00040821,2]
[377241242,1754306011206,-7506.25,0.00040821,2]
[377241243,1754306011216,-1191.23,0.00040821,2]
[377241244,1754306011226,-1349.97,0.00040821,2]
[377241245,1754306011235,-577.79,0.00040821,2]
[377241246,1754306011245,-1074.04,0.00040821,2]
[377241247,1754306011255,-3769.24,0.00040821,2]
[377241248,1754306011264,-988.14,0.00040821,2]
[377241249,1754306011274,-1741.31,0.00040821,2]
[377241250,1754306011284,-400.0,0.00040821,2]
[377241251,1754306011293,-1932.57,0.00040821,2]
[377241252,1754306011302,-3095.42,0.00040821,2]
[377241253,1754306011312,-312.64674147,0.00040821,2]
[377241254,1754306011322,-1252.42,0.00040821,2]
[377241255,1754306011331,-1555.06,0.00040821,2]
[377241256,1754306011340,-3383.45,0.00040821,2]
[377241257,1754306011350,-400.0,0.00040821,2]
[377241258,1754306011360,-495.93,0.00040821,2]
[377241259,1754306011370,-400.0,0.00040821,2]
[377241260,1754306011379,-1985.84,0.00040821,2]
[377241261,1754306011389,-2072.61,0.00040821,2]
[377241262,1754306011400,-1602.8,0.00040821,2]
[377241263,1754306011410,-1753.85,0.00040821,2]
[377241264,1754306011420,-3681.37,0.00040821,2]
[377241265,1754306011429,-400.0,0.00040821,2]
[377241266,1754306011439,-400.0,0.00040821,2]
[377241267,1754306011448,-1605.29,0.00040821,2]
[377241268,1754306011458,-1657.08,0.00040821,2]
[377241269,1754306011468,-1613.77,0.00040821,2]
[377241270,1754306011477,-400.0,0.00040821,2]
[377241271,1754306011487,-400.0,0.00040821,2]
[377241272,1754306011497,-1726.45,0.00040821,2]
[377241273,1754306011508,-1109.72,0.00040821,2]
[377241274,1754306011518,-1265.39,0.00040821,2]
[377241275,1754306011527,-2197.37,0.00040821,2]
[377241276,1754306011537,-400.0,0.00040821,2]
[377241277,1754306011547,-531.77,0.00040821,2]
[377241278,1754306011558,-1790.09,0.00040821,2]
[377241279,1754306011568,-400.0,0.00040821,2]
[377241280,1754306011581,-994.35,0.00040821,2]
[377241281,1754306011591,-400.0,0.00040821,2]
[377241282,1754306011601,-1207.63,0.00040821,2]
[377241283,1754306011610,-400.0,0.00040821,2]
[377241284,1754306011622,-1697.44,0.00040821,2]
[377241285,1754306011633,-1044.0,0.00040821,2]
[377241286,1754306011644,-1273.07,0.00040821,2]
[377241287,1754306011654,-400.0,0.00040821,2]
[377241288,1754306011664,-971.37,0.00040821,2]
[377241289,1754306011674,-1153.38,0.00040821,2]
[377241290,1754306011684,-400.0,0.00040821,2]
[377241291,1754306011694,-1809.15,0.00040821,2]
[377241292,1754306011704,-8777.73,0.00040821,2]
[377241293,1754306011714,-596.6,0.00040821,2]
[377241294,1754306011723,-490.62,0.00040821,2]
[377241295,1754306011733,-1037.03,0.00040821,2]
[377241296,1754306011743,-399.50672556,0.00040821,2]
[377241297,1754306011752,-2275.44,0.00040821,2]
[377241298,1754306011762,-1600.04,0.00040821,2]
[377241299,1754306011772,-599.54,0.00040821,2]
[377241300,1754306011781,-1213.48,0.00040821,2]
[377241301,1754306011792,-6082.8,0.00040821,2]
[377241302,1754306011804,-1097.82,0.00040821,2]
[377241303,1754306011814,-400.0,0.00040821,2]
[377241304,1754306011825,-797.89,0.00040821,2]
[377241305,1754306011834,-448.66,0.00040821,2]
[377241306,1754306012178,-596.19,0.00040821,2]
[377241307,1754306012191,-10707.5,0.00040821,2]
[377241308,1754306012200,-1518.17,0.00040821,2]
[377241309,1754306012210,-4934.5,0.00040821,2]
[377241310,1754306012221,-530.56471713,0.00040821,2]
[377241311,1754306012230,-2575.64,0.00040821,2]
[377241312,1754306012240,-400.0,0.00040821,2]
[377241313,1754306012250,-400.0,0.00040821,2]
[377241314,1754306012260,-1936.12,0.00040821,2]
[377241315,1754306012270,-1048.1,0.00040821,2]
[377241316,1754306012280,-2188.32,0.00040821,2]
[377241317,1754306012290,-1283.58,0.00040821,2]
[377241318,1754306012300,-586.94,0.00040821,2]
[377241319,1754306012310,-1614.51,0.00040821,2]
[377241320,1754306012320,-1367.27,0.00040821,2]
[377241321,1754306012330,-400.0,0.00040821,2]
[377241322,1754306012340,-400.0,0.00040821,2]
[377241323,1754306012350,-400.0,0.00040821,2]
[377241324,1754306012360,-500.49,0.00040821,2]
[377241325,1754306012370,-1400.57,0.00040821,2]
[377241326,1754306012379,-1339.76,0.00040821,2]
[377241327,1754306012389,-3431.45,0.00040821,2]
[377241328,1754306012399,-1254.59,0.00040821,2]
[377241329,1754306012409,-16704.11,0.00040821,2]
[377241330,1754306012420,-1128.88,0.00040821,2]
[377241331,1754306012429,-1799.3,0.00040821,2]
[377241332,1754306012439,-4814.39,0.00040821,2]
[377241333,1754306012449,-400.0,0.00040821,2]
[377241334,1754306012460,-1494.19,0.00040821,2]
[377241335,1754306012470,-871.27,0.00040821,2]
[377241336,1754306012480,-1442.54,0.00040821,2]
[377241337,1754306012490,-2112.05,0.00040821,2]
[377241338,1754306012501,-525.6,0.00040821,2]
[377241339,1754306012510,-400.0,0.00040821,2]
[377241340,1754306012520,-2310.1,0.00040821,2]
[377241341,1754306012530,-953.11,0.00040821,2]
[377241342,1754306012540,-637.09,0.00040821,2]
[377241343,1754306012551,-571.02,0.00040821,2]
[377241344,1754306012561,-2192.65,0.00040821,2]
[377241345,1754306012572,-1651.01,0.00040821,2]
[377241346,1754306012582,-845.12,0.00040821,2]
[377241347,1754306012592,-958.06,0.00040821,2]
[377241348,1754306012602,-3310.33,0.00040821,2]
[377241349,1754306012611,-533.36,0.00040821,2]
[377241350,1754306012621,-1650.75,0.00040821,2]
[377241351,1754306012631,-781.29,0.00040821,2]
[377241352,1754306012641,-1119.04058445,0.00040821,30]
[377241353,1754306012651,-1119.04058445,0.00040821,30]
[377241354,1754306012661,-151.0,0.00040826,14]
[377241355,1754306012671,-151.0,0.00040826,14]
[377241356,1754306012681,-151.0,0.00040826,14]
[377241357,1754306012691,-151.0,0.00040826,14]
[377241358,1754306012701,-151.0,0.00040826,14]
[377241359,1754306012710,-151.0,0.00040826,14]
[377241360,1754306012720,-286.998784,0.00040826,14]
[377241361,1754306012729,-151.0,0.00040826,14]
[377241362,1754306012739,-151.0,0.00040826,14]
[377241363,1754306012749,-151.0,0.00040826,14]
[377241364,1754306012759,-151.0,0.00040826,14]
[377241365,1754306012768,-151.0,0.00040826,14]
[377241366,1754306012778,-151.0,0.00040826,14]
[377241367,1754306012787,-151.0,0.00040826,14]
[377241368,1754306012797,-204.768873,0.00040826,14]
[377241369,1754306012808,-204.272236,0.00040826,14]
[377241370,1754306012817,-204.272236,0.00040826,14]
[377241371,1754306012828,-204.272236,0.00040826,14]
[377241372,1754306012837,-204.272236,0.00040826,14]
[377241373,1754306012847,-204.272236,0.00040826,14]
[377241374,1754306012856,-204.272236,0.00040826,14]
[377241375,1754306012866,-204.272236,0.00040826,14]
[377241376,1754306012876,-204.272236,0.00040826,14]
[377241377,1754306012885,-204.272236,0.00040826,14]
[377241378,1754306012896,-204.272236,0.00040826,14]
[377241379,1754306012905,-204.272236,0.00040826,14]
[377241380,1754306012915,-204.272242,0.00040826,14]
[377241381,1754306012925,-151.0,0.00040826,14]
[377241382,1754306012938,-151.0,0.00040826,14]
[377241383,1754306012947,-151.0,0.00040826,14]
[377241384,1754306012957,-151.0,0.00040826,14]
[377241385,1754306012966,-151.0,0.00040826,14]
[377241386,1754306012976,-236.369138,0.00040826,14]
[377241387,1754306012988,-4000.0,0.00040832,8]
[377241388,1754306012998,-298.26089446,0.00040846,2]
[377241389,1754306013007,-447.3913417,0.00040846,2]
[377241390,1754306013019,-193.15940632,0.00040891,7]
[377241391,1754306013031,-714.04,0.000409,30]
[377241392,1754306013042,-1000.0,0.00040927,2]
[377241393,1754306013053,-2588.34,0.00040955,2]
[377241394,1754306013063,-1000.0,0.0004097,7]
[377241395,1754306013073,-50000.0,0.00041,41]
[377241396,1754306013085,-50000.0,0.00041,51]
[377241397,1754306013096,-2250.39811378,0.00041,7]
[377241398,1754306013107,-1179.88,0.00041094,5]
[377241399,1754306013118,-151.0,0.00041095,14]
[377241400,1754306013128,-151.0,0.00041095,14]
[377241401,1754306013139,-151.0,0.00041095,14]
[377241402,1754306013151,-280.0,0.00041095,2]
[377241403,1754306013162,-360.92237036,0.00041095,2]
[377241404,1754306013174,-400.0,0.00041095,2]
[377241405,1754306013184,-204.2894589,0.00041095,120]
[377241406,1754306013195,-386.33838728,0.00041095,2]
[377241407,1754306013206,-400.0,0.00041095,2]
[377241408,1754306013217,-547.58,0.00041095,2]
[377241409,1754306013228,-458.04,0.00041095,2]
[377241410,1754306013239,-1200.66,0.00041095,2]
[377241411,1754306013250,-586.47,0.00041095,2]
[377241412,1754306013261,-520.3,0.00041095,2]
[377241413,1754306013272,-400.0,0.00041095,2]
[377241414,1754306013283,-452.57,0.00041095,2]
[377241415,1754306013294,-1404.01,0.00041095,2]
[377241416,1754306013309,-400.0,0.00041095,2]
[377241417,1754306013320,-472.84,0.00041095,2]
[377241418,1754306013331,-1341.8,0.00041095,2]
[377241419,1754306013342,-400.0,0.00041095,2]
[377241420,1754306013354,-484.06,0.00041095,2]
[377241421,1754306013365,-667.41,0.00041095,2]
[377241422,1754306013376,-1693.03,0.00041095,2]
[377241423,1754306013387,-537.19,0.00041095,2]
[377241424,1754306013399,-849.99,0.00041095,2]
[377241425,1754306013411,-931.14,0.00041095,2]
[377241426,1754306013423,-458.07,0.00041095,2]
[377241427,1754306013435,-1076.15,0.00041095,2]
[377241428,1754306013447,-400.0,0.00041095,2]